Workbook

Sheet Cover
A3: Navigator
C5: =Client_Name -> SumProduct Pty Limited
C6: =Model_Name -> Agile Excel vLB1.02_for blog.xlsm
C14: Primary Developer: Liam Bastick
C15: Revisions: Hanh Tran
C17: General Cover Notes:
C18: Example to develop a dashboard.
C22: Any queries, please e-mail: | G22: liam.bastick@sumproduct.com
C23: Website: | G23: www.sumproduct.com

Sheet Navigator
A1: Navigator
A2: =Model_Name -> Agile Excel vLB1.02_for blog.xlsm
A3: Navigator
E4: Error Checks: | G4: =Overall_Error_Check -> 0
B7: 1 | C7: Table of Contents
F9: Cover
F10: Style Guide
F11: Model Parameters
F12: Simulation>>
F13: Normal Distributions
F14: Simulation Example
F15: Lookups
F16: Error Checks

Sheet Style Guide
A1: =IF(ISERROR(RIGHT(CELL("filename",A1),LEN(CELL("filename",A1))-FIND("]",CELL("filename",A1)))), "", RIGHT(CELL("filename",A1),LEN(CELL("filename",A1))-FIND("]",CELL("filename",A1)))) -> Style Guide
A2: =Model_Name -> Agile Excel vLB1.02_for blog.xlsm
A3: Navigator
E4: Error Checks: | I4: =Overall_Error_Check -> 0
B6: =MAX($B$5:$B5)+1 -> 1 | C6: Formatting of Headers / Dividers
C8: Description | I8: Display | K8: Style Name
C10: Sheet Title | I10: =C10 -> Sheet Title | K10: Sheet Title
C11: Model Name | I11: =C11 -> Model Name | K11: Model Name
C13: Header 1 | I13: =C13 -> Header 1 | K13: Header 1
C14: Header 2 | I14: =C14 -> Header 2 | K14: Header 2
C15: Header 3 | I15: =C15 -> Header 3 | K15: Header 3
C16: Header 4 | I16: =C16 -> Header 4 | K16: Header 4
C18: Notes | I18: =C18 -> Notes | K18: Notes
C20: Table Heading | I20: =C20 -> Table Heading | K20: Table Heading
B23: =MAX($B$5:$B22)+1 -> 2 | C23: Individual Cell Styles
C25: Description | I25: Display | K25: Style Name
C27: Assumption | I27: Assumption | K27: =C27 -> Assumption
C29: Constraint | I29: =C29 -> Constraint | K29: =C29 -> Constraint
C31: Empty | K31: =C31 -> Empty
C33: Error Check | I33: 0 | K33: =C33 -> Error Check
C35: Hyperlink | I35: Hyperlink | K35: =C35 -> Hyperlink
C37: Internal Reference | I37: ='Error Checks'!E12 -> Example | K37: =C37 -> Internal Reference
C39: Line Calculation | I39: 77 | K39: Line Calc
C41: Line Total | I41: =I39 -> 77 | K41: =C41 -> Line Total
C43: Parameter | I43: 365 | K43: =C43 -> Parameter
C45: Range Name Description | I45: Not_Named | K45: =C45 -> Range Name Description
C47: Row Reference | I47: =ROW(C47) -> 47 | K47: Row Ref
C49: Row Summary | I49: =I41 -> 77 | K49: =C49 -> Row Summary
C51: Units | I51: A$ | K51: =C51 -> Units
C53: WIP | K53: =C53 -> WIP
B56: =MAX($B$5:$B55)+1 -> 3 | C56: Numerical Styles
C58: Description | I58: Display | K58: Style Name
C60: Comma | I60: 123456.789 | K60: =C60 -> Comma
C62: Comma [0] | I62: -123456.789 | K62: Comma [0]
C64: Currency | I64: 123456.789 | K64: Currency
C66: Currency [0] | I66: 123456.789 | K66: Currency [0]
C68: Date | I68: =TODAY() -> 2020-12-16 | K68: =C68 -> Date
C70: Date Heading | I70: =TODAY() -> 2020-12-16 | K70: =C70 -> Date Heading
C72: Numbers 0 | I72: -123456.789 | K72: =C72 -> Numbers 0
C74: Percent | I74: 0.5 | K74: =C74 -> Percent

Sheet Model Parameters
A1: =IF(ISERROR(RIGHT(CELL("filename",A1),LEN(CELL("filename",A1))-FIND("]",CELL("filename",A1)))), "", RIGHT(CELL("filename",A1),LEN(CELL("filename",A1))-FIND("]",CELL("filename",A1)))) -> Model Parameters
A2: =Model_Name -> Agile Excel vLB1.02_for blog.xlsm
A3: Navigator
E4: Error Checks: | I4: =Overall_Error_Check -> 0
B6: =MAX($B$5:$B5)+1 -> 1 | C6: General
C8: Key Inputs
E10: General
E11: Model Name | G11: =IF(ISERROR(OR(FIND("[",CELL("filename",A1)),FIND("]",CELL("filename",A1)))),"",MID(CELL("filename",A1),FIND("[",CELL("filename",A1))+1,FIND("]",CELL("filename",A1))-FIND("[",CELL("filename",A1))-1)) -> Agile Excel vLB1.02_for blog.xlsm
E12: Client Name | G12: SumProduct Pty Limited
B15: =MAX($B$5:$B14)+1 -> 2 | C15: General Range Names
C17: Technical Assumptions
E19: Days in Year | G19: 365
E20: Months in Month | G20: 1
E21: Months in Quarter | G21: 3
E22: Months in Half Yr | G22: 6
E23: Months in Year | G23: 12
E24: Quarters in Year | G24: 4
E26: Rounding Accuracy | G26: 5
E28: Very Large Number | G28: 1e+99
E29: Very Small Number | G29: 1e-08
E31: Thousand | G31: 1000

Sheet Simulation>>
A3: Navigator

Sheet Normal Distributions
A1: =IF(ISERROR(RIGHT(CELL("filename",A1),LEN(CELL("filename",A1))-FIND("]",CELL("filename",A1)))), "", RIGHT(CELL("filename",A1),LEN(CELL("filename",A1))-FIND("]",CELL("filename",A1)))) -> Normal Distributions
A2: SP-Simulation-Examples_Rebuild_vHT1.00.xlsm
A3: Navigator
E4: Error Checks: | I4: 0
B6: =MAX($B$5:$B5)+1 -> 1 | C6: =A1 -> Normal Distributions
C8: Normal Distribution Examples
D10: Assumptions
G12: Mean | J12: 0
G13: Standard Deviation | J13: 1
D16: Calculations
G18: Value | H18: Cum Probability | J18: Incorrect Probability | K18: Correct Probability | M18: Value | N18: NORMINV
G19: =-3*J13 -> -3 | H19: =_xlfn.NORM.DIST($G19,Mean,Standard_Deviation,TRUE) -> 0.001349898032 | J19: =_xlfn.NORM.DIST($G19,Mean,Standard_Deviation,FALSE) -> 0.004431848412 | M19: =H19 -> 0.001349898032 | N19: =_xlfn.NORM.INV($M19,Mean,Standard_Deviation) -> -3
G20: =ROUND(G19+(0.1*$J$13),1) -> -2.9 | H20: 0.0018658133 | J20: 0.00595253242 | K20: =H20-H19 -> 0.0005159152688 | M20: =H20 -> 0.0018658133 | N20: -2.9
G21: =ROUND(G20+(0.1*$J$13),1) -> -2.8 | H21: 0.00255513033 | J21: 0.007915451583 | K21: =H21-H20 -> 0.00068931703 | M21: 0.00255513033 | N21: -2.8
G22: -2.7 | H22: 0.003466973803 | J22: 0.01042093481 | K22: 0.0009118434726 | M22: 0.003466973803 | N22: -2.7
G23: -2.6 | H23: 0.004661188024 | J23: 0.01358296923 | K23: 0.001194214221 | M23: 0.004661188024 | N23: -2.6
G24: -2.5 | H24: 0.006209665326 | J24: 0.01752830049 | K24: 0.001548477302 | M24: 0.006209665326 | N24: -2.5
G25: -2.4 | H25: 0.008197535925 | J25: 0.02239453029 | K25: 0.001987870599 | M25: 0.008197535925 | N25: -2.4
G26: -2.3 | H26: 0.01072411002 | J26: 0.02832703774 | K26: 0.002526574097 | M26: 0.01072411002 | N26: -2.3
G27: -2.2 | H27: 0.01390344751 | J27: 0.03547459285 | K27: 0.003179337492 | M27: 0.01390344751 | N27: -2.2
G28: -2.1 | H28: 0.01786442056 | J28: 0.04398359598 | K28: 0.003960973049 | M28: 0.01786442056 | N28: -2.1
G29: -2 | H29: 0.02275013195 | J29: 0.05399096651 | K29: 0.004885711385 | M29: 0.02275013195 | N29: -2
G30: -1.9 | H30: 0.02871655982 | J30: 0.06561581477 | K30: 0.005966427868 | M30: 0.02871655982 | N30: -1.9
G31: -1.8 | H31: 0.03593031911 | J31: 0.0789501583 | K31: 0.007213759297 | M31: 0.03593031911 | N31: -1.8
G32: -1.7 | H32: 0.04456546276 | J32: 0.09404907738 | K32: 0.008635143646 | M32: 0.04456546276 | N32: -1.7
G33: -1.6 | H33: 0.0547992917 | J33: 0.1109208347 | K33: 0.01023382894 | M33: 0.0547992917 | N33: -1.6
G34: -1.5 | H34: 0.06680720127 | J34: 0.1295175957 | K34: 0.01200790957 | M34: 0.06680720127 | N34: -1.5
G35: -1.4 | H35: 0.08075665923 | J35: 0.1497274656 | K35: 0.01394945796 | M35: 0.08075665923 | N35: -1.4
G36: -1.3 | H36: 0.09680048459 | J36: 0.171368592 | K36: 0.01604382535 | M36: 0.09680048459 | N36: -1.3
G37: -1.2 | H37: 0.1150696702 | J37: 0.194186055 | K37: 0.01826918564 | M37: 0.1150696702 | N37: -1.2
G38: -1.1 | H38: 0.1356660609 | J38: 0.217852177 | K38: 0.02059639072 | M38: 0.1356660609 | N38: -1.1
G39: -1 | H39: 0.1586552539 | J39: 0.2419707245 | K39: 0.02298919299 | M39: 0.1586552539 | N39: -1
G40: -0.9 | H40: 0.1840601253 | J40: 0.2660852499 | K40: 0.02540487142 | M40: 0.1840601253 | N40: -0.9
G41: -0.8 | H41: 0.2118553986 | J41: 0.2896915528 | K41: 0.02779527324 | M41: 0.2118553986 | N41: -0.8
G42: -0.7 | H42: 0.2419636522 | J42: 0.3122539334 | K42: 0.03010825364 | M42: 0.2419636522 | N42: -0.7
G43: -0.6 | H43: 0.2742531178 | J43: 0.3332246029 | K43: 0.03228946553 | M43: 0.2742531178 | N43: -0.6
G44: -0.5 | H44: 0.3085375387 | J44: 0.3520653268 | K44: 0.03428442098 | M44: 0.3085375387 | N44: -0.5
G45: -0.4 | H45: 0.3445782584 | J45: 0.3682701403 | K45: 0.03604071966 | M45: 0.3445782584 | N45: -0.4
G46: -0.3 | H46: 0.3820885778 | J46: 0.3813878155 | K46: 0.03751031942 | M46: 0.3820885778 | N46: -0.3
G47: -0.2 | H47: 0.4207402906 | J47: 0.391042694 | K47: 0.03865171275 | M47: 0.4207402906 | N47: -0.2
G48: -0.1 | H48: 0.4601721627 | J48: 0.3969525475 | K48: 0.03943187216 | M48: 0.4601721627 | N48: -0.1
G49: 0 | H49: 0.5 | J49: 0.3989422804 | K49: 0.03982783728 | M49: 0.5 | N49: 0
G50: 0.1 | H50: 0.5398278373 | J50: 0.3969525475 | K50: 0.03982783728 | M50: 0.5398278373 | N50: 0.1
G51: 0.2 | H51: =_xlfn.NORM.DIST($G51,Mean,Standard_Deviation,TRUE) -> 0.5792597094 | J51: =_xlfn.NORM.DIST($G51,Mean,Standard_Deviation,FALSE) -> 0.391042694 | K51: 0.03943187216 | M51: 0.5792597094 | N51: =_xlfn.NORM.INV($M51,Mean,Standard_Deviation) -> 0.2
G52: 0.3 | H52: 0.6179114222 | J52: 0.3813878155 | K52: 0.03865171275 | M52: 0.6179114222 | N52: 0.3
G53: 0.4 | H53: 0.6554217416 | J53: 0.3682701403 | K53: 0.03751031942 | M53: 0.6554217416 | N53: 0.4
G54: 0.5 | H54: 0.6914624613 | J54: 0.3520653268 | K54: 0.03604071966 | M54: 0.6914624613 | N54: 0.5
G55: 0.6 | H55: 0.7257468822 | J55: 0.3332246029 | K55: 0.03428442098 | M55: 0.7257468822 | N55: 0.6
G56: 0.7 | H56: 0.7580363478 | J56: 0.3122539334 | K56: 0.03228946553 | M56: 0.7580363478 | N56: 0.7
G57: 0.8 | H57: 0.7881446014 | J57: 0.2896915528 | K57: 0.03010825364 | M57: 0.7881446014 | N57: 0.8
G58: 0.9 | H58: 0.8159398747 | J58: 0.2660852499 | K58: 0.02779527324 | M58: 0.8159398747 | N58: 0.9
G59: 1 | H59: 0.8413447461 | J59: 0.2419707245 | K59: 0.02540487142 | M59: 0.8413447461 | N59: 1
G60: 1.1 | H60: 0.8643339391 | J60: 0.217852177 | K60: 0.02298919299 | M60: 0.8643339391 | N60: 1.1
G61: 1.2 | H61: 0.8849303298 | J61: 0.194186055 | K61: 0.02059639072 | M61: 0.8849303298 | N61: 1.2
G62: 1.3 | H62: 0.9031995154 | J62: 0.171368592 | K62: 0.01826918564 | M62: 0.9031995154 | N62: 1.3
G63: 1.4 | H63: 0.9192433408 | J63: 0.1497274656 | K63: 0.01604382535 | M63: 0.9192433408 | N63: 1.4
G64: 1.5 | H64: 0.9331927987 | J64: 0.1295175957 | K64: 0.01394945796 | M64: 0.9331927987 | N64: 1.5
G65: 1.6 | H65: 0.9452007083 | J65: 0.1109208347 | K65: 0.01200790957 | M65: 0.9452007083 | N65: 1.6
G66: 1.7 | H66: 0.9554345372 | J66: 0.09404907738 | K66: 0.01023382894 | M66: 0.9554345372 | N66: 1.7
G67: 1.8 | H67: 0.9640696809 | J67: 0.0789501583 | K67: 0.008635143646 | M67: 0.9640696809 | N67: 1.8
G68: 1.9 | H68: 0.9712834402 | J68: 0.06561581477 | K68: 0.007213759297 | M68: 0.9712834402 | N68: 1.9
G69: 2 | H69: 0.9772498681 | J69: 0.05399096651 | K69: 0.005966427868 | M69: 0.9772498681 | N69: 2
G70: 2.1 | H70: 0.9821355794 | J70: 0.04398359598 | K70: 0.004885711385 | M70: 0.9821355794 | N70: 2.1
G71: 2.2 | H71: 0.9860965525 | J71: 0.03547459285 | K71: 0.003960973049 | M71: 0.9860965525 | N71: 2.2
G72: 2.3 | H72: 0.98927589 | J72: 0.02832703774 | K72: 0.003179337492 | M72: 0.98927589 | N72: 2.3
G73: 2.4 | H73: 0.9918024641 | J73: 0.02239453029 | K73: 0.002526574097 | M73: 0.9918024641 | N73: 2.4
G74: 2.5 | H74: 0.9937903347 | J74: 0.01752830049 | K74: 0.001987870599 | M74: 0.9937903347 | N74: 2.5
G75: 2.6 | H75: 0.995338812 | J75: 0.01358296923 | K75: 0.001548477302 | M75: 0.995338812 | N75: 2.6
G76: 2.7 | H76: 0.9965330262 | J76: 0.01042093481 | K76: 0.001194214221 | M76: 0.9965330262 | N76: 2.7
G77: 2.8 | H77: 0.9974448697 | J77: 0.007915451583 | K77: 0.0009118434726 | M77: 0.9974448697 | N77: 2.8
G78: 2.9 | H78: 0.9981341867 | J78: 0.00595253242 | K78: 0.00068931703 | M78: 0.9981341867 | N78: 2.9
G79: 3 | H79: 0.998650102 | J79: 0.004431848412 | K79: 0.0005159152688 | M79: 0.998650102 | N79: 3
G81: ANALYSIS | H81: =H79-H19 -> 0.9973002039 | J81: =SUM(J19:J79) -> 9.977212517 | K81: =SUM(K19:K79) -> 0.9973002039

Sheet Simulation Example
A1: =IF(ISERROR(RIGHT(CELL("filename",A1),LEN(CELL("filename",A1))-FIND("]",CELL("filename",A1)))), "", RIGHT(CELL("filename",A1),LEN(CELL("filename",A1))-FIND("]",CELL("filename",A1)))) -> Simulation Example
A2: Simulation Example.xlsm
A3: Navigator
E4: Error Checks: | I4: 0
B6: =MAX($B$5:$B5)+1 -> 1 | C6: =A1 -> Simulation Example
C8: Simulation Example
D10: Assumptions
I11: Mean | J11: Standard Deviation | L11: Value Used
G12: Sales (US$) | I12: 1000 | J12: 175 | L12: =_xlfn.NORM.INV(RAND(),Mean_Sales,SD_Sales) -> 1030.715979
G13: Foreign Exchange (US$:A$) | I13: 0.92 | J13: 0.05 | L13: =_xlfn.NORM.INV(RAND(),Mean_FX,SD_FX) -> 0.9173528993
G14: Gross Margin (%) | I14: 0.4 | J14: 0.02 | L14: =_xlfn.NORM.INV(RAND(),Mean_GM,SD_GM) -> 0.4157936746
D17: Calculations
G19: =G12 -> Sales (US$) | I19: =L12 -> 1030.715979
G20: =G13 -> Foreign Exchange (US$:A$) | I20: =L13 -> 0.9173528993
G21: Sales (A$) | I21: =I19/I20 -> 1123.576303
G22: =G14 -> Gross Margin (%) | I22: =L14 -> 0.4157936746
G24: Gross Profit (A$) | I24: =I21*I22 -> 467.1759197
D27: Data Table
G29: Data Table Switch | H29: TRUE
G31: =IF(Data_Switch,I19,) -> 1030.715979 | H31: =IF(Data_Switch,I20,) -> 0.9173528993 | I31: =IF(Data_Switch,I22,) -> 0.4157936746 | J31: =IF(Data_Switch,I24,) -> 467.1759197
F32: 1 | G32: 1085.23043 | H32: 1.020995797 | I32: 0.3820995229 | J32: 406.1388216
F33: 2 | G33: 818.3900391 | H33: 0.9005548255 | I33: 0.4218044082 | J33: 383.3198338
F34: 3 | G34: 642.9411073 | H34: 0.8608117881 | I34: 0.3840506132 | J34: 286.8477522
F35: 4 | G35: 1247.039612 | H35: 0.9163925465 | I35: 0.4028435392 | J35: 548.1950421
F36: 5 | G36: 1046.544007 | H36: 0.8345018358 | I36: 0.4332265739 | J36: 543.3069827
F37: 6 | G37: 1192.080377 | H37: 0.7728751027 | I37: 0.4099049382 | J37: 632.2362197
F38: 7 | G38: 1257.670407 | H38: 0.9418236486 | I38: 0.396984899 | J38: 530.1163973
F39: 8 | G39: 1024.297115 | H39: 0.8891510789 | I39: 0.3989229312 | J39: 459.5570057
F40: 9 | G40: 1219.660917 | H40: 1.028831855 | I40: 0.3865406697 | J40: 458.2367326
F41: 10 | G41: 946.9179932 | H41: 0.8798018077 | I41: 0.4061213938 | J41: 437.1025972
F42: 11 | G42: 1427.120915 | H42: 0.8628323467 | I42: 0.4207147975 | J42: 695.860429
F43: 12 | G43: 1001.404366 | H43: 1.001716842 | I43: 0.3873690317 | J43: 387.2481959
F44: 13 | G44: 1174.711957 | H44: 0.9089835649 | I44: 0.4044276525 | J44: 522.6563135
F45: 14 | G45: 924.4206815 | H45: 0.9937226897 | I45: 0.394388241 | J45: 366.8836893
F46: 15 | G46: 1016.877681 | H46: 0.9964083009 | I46: 0.3808427474 | J46: 388.6664628
F47: 16 | G47: 879.2109331 | H47: 0.9779691969 | I47: 0.4047946958 | J47: 363.9173129
F48: 17 | G48: 1193.575049 | H48: 0.9664473619 | I48: 0.3980531336 | J48: 491.600792
F49: 18 | G49: 900.1827208 | H49: 0.8402138192 | I49: 0.3843870996 | J49: 411.8221068
F50: 19 | G50: 1140.408931 | H50: 0.9346948024 | I50: 0.3818351953 | J50: 465.8721389
F51: 20 | G51: 981.5987372 | H51: 0.953519578 | I51: 0.4177391697 | J51: 430.0407154
F52: 21 | G52: 1203.086199 | H52: 0.9003622296 | I52: 0.3837027857 | J52: 512.713118
F53: 22 | G53: 797.9837087 | H53: 0.8397138283 | I53: 0.3896277 | J53: 370.2649005
F54: 23 | G54: 971.6417714 | H54: 0.9610928102 | I54: 0.3853643869 | J54: 389.594149
F55: 24 | G55: 932.1255162 | H55: 0.8529185743 | I55: 0.3601123533 | J55: 393.554465
F56: 25 | G56: 896.9388018 | H56: 0.8473083631 | I56: 0.3490005923 | J56: 369.4430348
F57: 26 | G57: 1152.207097 | H57: 0.9835318416 | I57: 0.4171861819 | J57: 488.7334187
F58: 27 | G58: 942.8152693 | H58: 0.9183885562 | I58: 0.3928969334 | J58: 403.3469554
F59: 28 | G59: 1113.220919 | H59: 0.9360582816 | I59: 0.4492233313 | J59: 534.2453771
F60: 29 | G60: 1053.688352 | H60: 0.906186077 | I60: 0.3887259037 | J60: 451.9998345
F61: 30 | G61: 1070.187802 | H61: 0.9365628019 | I61: 0.3971013327 | J61: 453.7581478
F62: 31 | G62: 1242.24146 | H62: 0.8743651862 | I62: 0.4072070462 | J62: 578.5334132
F63: 32 | G63: 1001.85109 | H63: 0.9012635259 | I63: 0.3867451787 | J63: 429.9087532
F64: 33 | G64: 911.3759163 | H64: 0.9601059657 | I64: 0.4497791725 | J64: 426.950691
F65: 34 | G65: 1042.631338 | H65: 0.9050639023 | I65: 0.4007174496 | J65: 461.6254936
F66: 35 | G66: 876.2824747 | H66: 0.8681177008 | I66: 0.4143955903 | J66: 418.2930415
F67: 36 | G67: 1241.274314 | H67: 1.012476084 | I67: 0.4213401541 | J67: 516.5541376
F68: 37 | G68: 951.7521394 | H68: 0.8768550543 | I68: 0.4315501023 | J68: 468.4112055
F69: 38 | G69: 898.4686284 | H69: 0.9895318114 | I69: 0.3963127194 | J69: 359.8414334
F70: 39 | G70: 722.0608915 | H70: 0.989298747 | I70: 0.3752170581 | J70: 273.8602109
F71: 40 | G71: 870.6713211 | H71: 0.9197489332 | I71: 0.4254889808 | J71: 402.7849771
F72: 41 | G72: 857.3039419 | H72: 0.8614303744 | I72: 0.3953850818 | J72: 393.4911041
F73: 42 | G73: 1125.521963 | H73: 0.8727431906 | I73: 0.3930333095 | J73: 506.870322
F74: 43 | G74: 1111.998979 | H74: 0.8587648106 | I74: 0.4262248676 | J74: 551.9108512
F75: 44 | G75: 1160.131931 | H75: 0.9147915142 | I75: 0.4135373433 | J75: 524.4450446
F76: 45 | G76: 1109.867615 | H76: 0.9289141013 | I76: 0.404293583 | J76: 483.0504285
F77: 46 | G77: 1264.748638 | H77: 0.9075579654 | I77: 0.3591985888 | J77: 500.5695982
F78: 47 | G78: 1007.139643 | H78: 0.904837547 | I78: 0.409046792 | J78: 455.2941479
F79: 48 | G79: 924.1053319 | H79: 0.8756448889 | I79: 0.3882863844 | J79: 409.7751527
F80: 49 | G80: 1197.880446 | H80: 0.9423666437 | I80: 0.4145113772 | J80: 526.9022167
F81: 50 | G81: 899.5669032 | H81: 0.8969093329 | I81: 0.3864880732 | J81: 387.6332494
F82: 51 | G82: 1069.913918 | H82: 0.9826355962 | I82: 0.3692963235 | J82: 402.0974591
F83: 52 | G83: 1234.762749 | H83: 0.8835897414 | I83: 0.381837033 | J83: 533.5939548
F84: 53 | G84: 983.7789983 | H84: 0.8337306807 | I84: 0.4138775701 | J84: 488.3640134
F85: 54 | G85: 1148.064607 | H85: 0.9302763559 | I85: 0.3521798918 | J85: 434.6292006
F86: 55 | G86: 1239.618535 | H86: 0.9299888301 | I86: 0.3765923091 | J86: 501.9746381
F87: 56 | G87: 1013.705559 | H87: 0.8925611435 | I87: 0.3998003242 | J87: 454.0639194
F88: 57 | G88: 787.4592988 | H88: 0.8870469774 | I88: 0.424483925 | J88: 376.8276342
F89: 58 | G89: 1013.281955 | H89: 0.9328565853 | I89: 0.4358852669 | J89: 473.4647131
F90: 59 | G90: 944.6928103 | H90: 0.8282064169 | I90: 0.4089510867 | J90: 466.4696426
F91: 60 | G91: 1010.666824 | H91: 0.8843216309 | I91: 0.3929080339 | J91: 449.0437653
F92: 61 | G92: 920.7286461 | H92: 0.9470745253 | I92: 0.3944380499 | J92: 383.4655056
F93: 62 | G93: 734.8916026 | H93: 0.9459524923 | I93: 0.4299237818 | J93: 333.9992014
F94: 63 | G94: 836.7918842 | H94: 0.8700410749 | I94: 0.3673431828 | J94: 353.3049219
F95: 64 | G95: 883.476796 | H95: 0.9977178731 | I95: 0.3977305059 | J95: 352.189414
F96: 65 | G96: 1339.752282 | H96: 0.9230293491 | I96: 0.4009728695 | J96: 582.0013391
F97: 66 | G97: 1113.731086 | H97: 0.8890232972 | I97: 0.3764618169 | J97: 471.6155692
F98: 67 | G98: 1122.821476 | H98: 0.9492980102 | I98: 0.4206008056 | J98: 497.4829951
F99: 68 | G99: 1033.312997 | H99: 0.9308488179 | I99: 0.4106729638 | J99: 455.8782297
F100: 69 | G100: 710.3685143 | H100: 0.8793837567 | I100: 0.4066516767 | J100: 328.4942952
F101: 70 | G101: 1378.147712 | H101: 0.8849156713 | I101: 0.4102831253 | J101: 638.9656876
F102: 71 | G102: 1020.940088 | H102: 0.8432285691 | I102: 0.3899807857 | J102: 472.1697439
F103: 72 | G103: 849.8108026 | H103: 0.8872741029 | I103: 0.468774742 | J103: 448.9817052
F104: 73 | G104: 996.1301067 | H104: 0.8854099114 | I104: 0.3994036556 | J104: 449.3489411
F105: 74 | G105: 1216.653035 | H105: 0.9701619489 | I105: 0.4049176657 | J105: 507.7959482
F106: 75 | G106: 930.6996881 | H106: 0.8855276952 | I106: 0.4229321938 | J106: 444.5065502
F107: 76 | G107: 913.2966117 | H107: 0.9859148837 | I107: 0.4370632897 | J107: 404.8710778
F108: 77 | G108: 835.3386823 | H108: 0.8360284299 | I108: 0.4014917303 | J108: 401.160488
F109: 78 | G109: 955.1717946 | H109: 0.9922924664 | I109: 0.391591765 | J109: 376.9427075
F110: 79 | G110: 999.8638209 | H110: 0.8805933504 | I110: 0.3974552328 | J110: 451.2878816
F111: 80 | G111: 1266.890573 | H111: 0.9122219081 | I111: 0.412469662 | J111: 572.8364139
F112: 81 | G112: 1204.404021 | H112: 0.9798335503 | I112: 0.4300394152 | J112: 528.6012104
F113: 82 | G113: 809.9571638 | H113: 1.030356187 | I113: 0.4047763596 | J113: 318.192404
F114: 83 | G114: 1045.220425 | H114: 0.9801087347 | I114: 0.3829692974 | J114: 408.4111461
F115: 84 | G115: 1174.972577 | H115: 0.8517399512 | I115: 0.4008056194 | J115: 552.9100883
F116: 85 | G116: 1021.162404 | H116: 0.9138305877 | I116: 0.417918633 | J116: 467.0042804
F117: 86 | G117: 1063.96849 | H117: 0.8838571826 | I117: 0.4167690653 | J117: 501.6977424
F118: 87 | G118: 970.7112873 | H118: 0.9095999733 | I118: 0.4070335397 | J118: 434.3800163
F119: 88 | G119: 942.8617654 | H119: 0.9797311902 | I119: 0.3966777632 | J119: 381.7499124
F120: 89 | G120: 792.7736034 | H120: 0.8658291995 | I120: 0.4154148078 | J120: 380.3635801
F121: 90 | G121: 932.7404165 | H121: 0.9250481543 | I121: 0.4249406201 | J121: 428.474225
F122: 91 | G122: 1046.429408 | H122: 0.8965463018 | I122: 0.3732920283 | J122: 435.6983632
F123: 92 | G123: 892.2304919 | H123: 0.8939962748 | I123: 0.377926182 | J123: 377.1797185
F124: 93 | G124: 880.5135477 | H124: 0.9854250699 | I124: 0.4006123198 | J124: 357.9618438
F125: 94 | G125: 787.1259026 | H125: 0.863837551 | I125: 0.4290165812 | J125: 390.9184815
F126: 95 | G126: 741.3252406 | H126: 0.9345935026 | I126: 0.4171232031 | J126: 330.8646572
F127: 96 | G127: 953.8527076 | H127: 0.9427585217 | I127: 0.3893291349 | J127: 393.9106791
F128: 97 | G128: 901.112007 | H128: 0.8057381558 | I128: 0.4271980438 | J128: 477.7647476
F129: 98 | G129: 1117.551234 | H129: 0.9992594775 | I129: 0.3934298328 | J129: 440.0038278
F130: 99 | G130: 1161.029272 | H130: 0.9600278815 | I130: 0.3928583796 | J130: 475.1112828
F131: 100 | G131: 943.8812213 | H131: 0.8552834285 | I131: 0.4132687235 | J131: 456.0787388
F132: 101 | G132: 1255.376272 | H132: 0.9387042568 | I132: 0.3751017384 | J132: 501.6423635
F133: 102 | G133: 1255.868073 | H133: 0.9558542543 | I133: 0.4316254503 | J133: 567.0996601
F134: 103 | G134: 856.1801651 | H134: 0.9380013238 | I134: 0.3892119717 | J134: 355.2613005
F135: 104 | G135: 1162.227745 | H135: 0.9092390467 | I135: 0.3928126004 | J135: 502.1096535
F136: 105 | G136: 1063.230134 | H136: 0.9814651174 | I136: 0.3969635951 | J136: 430.0342913
F137: 106 | G137: 1011.321605 | H137: 0.9852727609 | I137: 0.4143193181 | J137: 425.2731776
F138: 107 | G138: 751.0185231 | H138: 0.8905522846 | I138: 0.406660235 | J138: 342.9437826
F139: 108 | G139: 915.4050372 | H139: 0.9792556829 | I139: 0.3947781274 | J139: 369.0373135
F140: 109 | G140: 1065.133473 | H140: 0.9789844352 | I140: 0.4031831903 | J140: 438.6626553
F141: 110 | G141: 953.6824906 | H141: 0.8929341411 | I141: 0.3857051326 | J141: 411.9455339
F142: 111 | G142: 855.714932 | H142: 0.9867486259 | I142: 0.3749815048 | J142: 325.1864401
F143: 112 | G143: 1126.68985 | H143: 0.9374554987 | I143: 0.3930183974 | J143: 472.3529167
F144: 113 | G144: 1085.676668 | H144: 0.8612359316 | I144: 0.3877055277 | J144: 488.7427826
F145: 114 | G145: 1241.330337 | H145: 0.8528352374 | I145: 0.4173573212 | J145: 607.4776011
F146: 115 | G146: 809.1397402 | H146: 0.9217648433 | I146: 0.3662807688 | J146: 321.5270449
F147: 116 | G147: 1241.711889 | H147: 0.8711698686 | I147: 0.3654227971 | J147: 520.8511544
F148: 117 | G148: 954.2190395 | H148: 0.9127978797 | I148: 0.4007610608 | J148: 418.9468918
F149: 118 | G149: 953.6585411 | H149: 0.8841859825 | I149: 0.3811609694 | J149: 411.1096774
F150: 119 | G150: 1205.530001 | H150: 0.9612699548 | I150: 0.3992896411 | J150: 500.7497
F151: 120 | G151: 1247.451365 | H151: 0.890066806 | I151: 0.3867129524 | J151: 541.9880812
F152: 121 | G152: 917.8755805 | H152: 0.9204178391 | I152: 0.3950314846 | J152: 393.9403799
F153: 122 | G153: 621.2276129 | H153: 1.032762684 | I153: 0.3938242779 | J153: 236.8932572
F154: 123 | G154: 740.7884631 | H154: 0.9711080102 | I154: 0.3731563625 | J154: 284.6541532
F155: 124 | G155: 868.9123533 | H155: 0.948024371 | I155: 0.374399664 | J155: 343.1562553
F156: 125 | G156: 1046.378798 | H156: 1.036982398 | I156: 0.4130639889 | J156: 416.8068822
F157: 126 | G157: 1213.209391 | H157: 0.8268914401 | I157: 0.4514009469 | J157: 662.2923411
F158: 127 | G158: 977.319452 | H158: 0.971707106 | I158: 0.3718790266 | J158: 374.0269102
F159: 128 | G159: 1044.572482 | H159: 0.9138433169 | I159: 0.4012034548 | J159: 458.597312
F160: 129 | G160: 1057.739597 | H160: 0.9082597363 | I160: 0.4170065622 | J160: 485.6368014
F161: 130 | G161: 1286.693589 | H161: 0.942734785 | I161: 0.4135089618 | J161: 564.3785915
F162: 131 | G162: 822.6440427 | H162: 0.9488882782 | I162: 0.3925808454 | J162: 340.3501773
F163: 132 | G163: 912.2482075 | H163: 0.8346915646 | I163: 0.3745922417 | J163: 409.3980525
F164: 133 | G164: 880.8013856 | H164: 0.9286582946 | I164: 0.3949193079 | J164: 374.5677776
F165: 134 | G165: 935.7141143 | H165: 1.021443424 | I165: 0.3880622439 | J165: 355.4923456
F166: 135 | G166: 1054.562304 | H166: 0.9859716169 | I166: 0.4280008029 | J166: 457.775361
F167: 136 | G167: 768.7042774 | H167: 0.8223683648 | I167: 0.3945109466 | J167: 368.7669238
F168: 137 | G168: 1105.260489 | H168: 0.8539206794 | I168: 0.42542474 | J168: 550.6426619
F169: 138 | G169: 1003.690882 | H169: 0.925160469 | I169: 0.3588885504 | J169: 389.3520939
F170: 139 | G170: 1201.64103 | H170: 0.8988676315 | I170: 0.4115210195 | J170: 550.137222
F171: 140 | G171: 877.7044579 | H171: 0.9121095391 | I171: 0.3569264802 | J171: 343.4630923
F172: 141 | G172: 1068.820954 | H172: 0.935431754 | I172: 0.3691103559 | J172: 421.7441634
F173: 142 | G173: 1029.47195 | H173: 0.8626252897 | I173: 0.35026177 | J173: 418.0084581
F174: 143 | G174: 1074.231699 | H174: 0.8762830654 | I174: 0.3832508068 | J174: 469.8255409
F175: 144 | G175: 1087.070854 | H175: 0.8594462186 | I175: 0.3586931143 | J175: 453.6931126
F176: 145 | G176: 1143.317367 | H176: 0.9198417961 | I176: 0.3942292953 | J176: 490.0073054
F177: 146 | G177: 1121.073525 | H177: 0.909331736 | I177: 0.4234335559 | J177: 522.0318728
F178: 147 | G178: 996.1897543 | H178: 0.9103281709 | I178: 0.4262350048 | J178: 466.4372237
F179: 148 | G179: 829.1158729 | H179: 0.9850011367 | I179: 0.395744585 | J179: 333.1144552
F180: 149 | G180: 1064.650685 | H180: 0.8386949232 | I180: 0.3664735399 | J180: 465.206471
F181: 150 | G181: 1316.516047 | H181: 0.8940953679 | I181: 0.3903364633 | J181: 574.753249
F182: 151 | G182: 1050.335362 | H182: 0.9543154012 | I182: 0.3723314373 | J182: 409.7941564
F183: 152 | G183: 800.0606918 | H183: 1.054406397 | I183: 0.375459581 | J183: 284.8905821
F184: 153 | G184: 1092.935162 | H184: 0.8795899329 | I184: 0.4260200838 | J184: 529.3515899
F185: 154 | G185: 1029.427788 | H185: 0.8522326912 | I185: 0.4119097581 | J185: 497.5534916
F186: 155 | G186: 904.1581817 | H186: 0.8500169227 | I186: 0.3617900225 | J186: 384.8339959
F187: 156 | G187: 1149.575924 | H187: 0.9979029591 | I187: 0.4313802255 | J187: 496.9464385
F188: 157 | G188: 1006.739262 | H188: 0.8991164588 | I188: 0.4207630766 | J188: 471.1277446
F189: 158 | G189: 1012.095991 | H189: 1.04694058 | I189: 0.374736627 | J189: 362.2645307
F190: 159 | G190: 1024.05541 | H190: 0.9184227579 | I190: 0.4268455197 | J190: 475.9392775
F191: 160 | G191: 1194.279107 | H191: 0.9495393279 | I191: 0.4016211495 | J191: 505.1373161
F192: 161 | G192: 1321.663232 | H192: 0.9734272769 | I192: 0.4355994787 | J192: 591.4317676
F193: 162 | G193: 1008.427516 | H193: 0.9209290116 | I193: 0.3667853621 | J193: 401.6340532
F194: 163 | G194: 1181.751071 | H194: 0.8720501304 | I194: 0.4119581797 | J194: 558.2615072
F195: 164 | G195: 944.5908206 | H195: 0.9694519309 | I195: 0.3947407266 | J195: 384.617798
F196: 165 | G196: 1036.033266 | H196: 0.8847658916 | I196: 0.3973157734 | J196: 465.2443798
F197: 166 | G197: 950.5574439 | H197: 1.006758465 | I197: 0.4384215429 | J197: 413.9472134
F198: 167 | G198: 1211.950819 | H198: 0.9812005472 | I198: 0.402791823 | J198: 497.5169257
F199: 168 | G199: 938.2092023 | H199: 0.968985848 | I199: 0.3758138787 | J199: 363.877388
F200: 169 | G200: 808.3277141 | H200: 0.9112988638 | I200: 0.3953754232 | J200: 350.7004395
F201: 170 | G201: 965.1746112 | H201: 0.78507586 | I201: 0.3899945255 | J201: 479.4604365
F202: 171 | G202: 916.7197189 | H202: 0.9548805414 | I202: 0.4409055495 | J202: 423.285211
F203: 172 | G203: 1030.742151 | H203: 0.8000045203 | I203: 0.381545612 | J203: 491.5911533
F204: 173 | G204: 1202.175803 | H204: 0.9587875883 | I204: 0.3914067918 | J204: 490.7654001
F205: 174 | G205: 1247.587641 | H205: 0.9203151681 | I205: 0.422714238 | J205: 573.0352789
F206: 175 | G206: 976.1758442 | H206: 0.8704421417 | I206: 0.4255185684 | J206: 477.2068445
F207: 176 | G207: 705.8897209 | H207: 0.8839921366 | I207: 0.4077303614 | J207: 325.5828408
F208: 177 | G208: 947.5506977 | H208: 0.9578243086 | I208: 0.420263582 | J208: 415.7558404
F209: 178 | G209: 1091.134682 | H209: 0.9059307656 | I209: 0.3809183797 | J209: 458.791412
F210: 179 | G210: 1174.833867 | H210: 0.8777273443 | I210: 0.3898799884 | J210: 521.8525064
F211: 180 | G211: 1226.335068 | H211: 0.876192292 | I211: 0.4007369564 | J211: 560.8789156
... 931 more rows

Sheet Lookups
A1: =IF(ISERROR(RIGHT(CELL("filename",A1),LEN(CELL("filename",A1))-FIND("]",CELL("filename",A1)))), "", RIGHT(CELL("filename",A1),LEN(CELL("filename",A1))-FIND("]",CELL("filename",A1)))) -> Lookups
A2: Simulation Example.xlsm
A3: Navigator
E4: Error Checks: | I4: 0
B6: =MAX($B$5:$B5)+1 -> 1 | C6: =A1 -> Lookups
C8: Simulation Outputs
G10: List
G11: ='Simulation Example'!G12 -> Sales (US$) | I11: LU_Simulation_Outputs
G12: ='Simulation Example'!G13 -> Foreign Exchange (US$:A$)
G13: ='Simulation Example'!G14 -> Gross Margin (%)
G14: ='Simulation Example'!M1046 -> Gross Profit (A$)

Sheet Error Checks
A1: =IF(ISERROR(RIGHT(CELL("filename",A1),LEN(CELL("filename",A1))-FIND("]",CELL("filename",A1)))), "", RIGHT(CELL("filename",A1),LEN(CELL("filename",A1))-FIND("]",CELL("filename",A1)))) -> Error Checks
A2: =Model_Name -> Agile Excel vLB1.02_for blog.xlsm
A3: Navigator
B4: Error Checks: | F4: =Overall_Error_Check -> 0
B6: =MAX($B$5:$B5)+1 -> 1 | C6: Error Checks
C8: Summary of Errors
D10: Assumptions
E12: Example
E17: =C8 -> Summary of Errors | I17: =MIN(1,SUM(I11:I15)) -> 0
